Workbook

Sheet Regular Race Night (hidden)
B1: 305 Sprint | E1: Stock Car | H1: Sport Mod | K1: Hobby Stock | N1: Compacts | Q1: Late Models
A2: 1 | B2: 700 | C2: 100 | D2: =SUM(B2:C2) -> 800 | E2: 350 | F2: 650 | G2: =SUM(E2:F2) -> 1000 | H2: 300 | I2: 200 | J2: =SUM(H2:I2) -> 500 | K2: 250 | L2: 200 | M2: =SUM(K2:L2) -> 450 | N2: 125 | O2: 125 | P2: =SUM(N2:O2) -> 250 | Q2: 500 | R2: 150 | S2: =SUM(Q2:R2) -> 650
A3: 2 | B3: 450 | C3: 75 | D3: =SUM(B3:C3) -> 525 | E3: 250 | F3: 250 | G3: =SUM(E3:F3) -> 500 | H3: 200 | I3: 100 | J3: =SUM(H3:I3) -> 300 | K3: 150 | L3: 100 | M3: =SUM(K3:L3) -> 250 | N3: 100 | O3: 50 | P3: =SUM(N3:O3) -> 150 | Q3: 375 | R3: 125 | S3: =SUM(Q3:R3) -> 500
A4: 3 | B4: 350 | C4: 50 | D4: 400 | E4: 200 | F4: 75 | G4: 275 | H4: 150 | I4: 100 | J4: 250 | K4: 125 | L4: 100 | M4: 225 | N4: 70 | O4: 50 | P4: 120 | Q4: 300 | R4: 100 | S4: 400
A5: 4 | B5: 325 | C5: 50 | D5: 375 | E5: 175 | F5: 75 | G5: 250 | H5: 130 | I5: 70 | J5: 200 | K5: 110 | L5: 75 | M5: 185 | N5: 60 | O5: 25 | P5: 85 | Q5: 275 | R5: 75 | S5: 350
A6: 5 | B6: 300 | C6: 50 | D6: 350 | E6: 165 | F6: 50 | G6: 215 | H6: 120 | I6: 55 | J6: 175 | K6: 100 | L6: 50 | M6: 150 | N6: 50 | O6: 25 | P6: 75 | Q6: 250 | R6: 25 | S6: 275
A7: 6 | B7: 250 | C7: 25 | D7: 275 | E7: 150 | F7: 50 | G7: 200 | H7: 100 | I7: 25 | J7: 125 | K7: 95 | L7: 25 | M7: 120 | N7: 40 | O7: 25 | P7: 65 | Q7: 220 | R7: 25 | S7: 245
A8: 7 | B8: 225 | C8: 25 | D8: 250 | E8: 140 | F8: 25 | G8: 165 | H8: 95 | I8: 25 | J8: 120 | K8: 90 | L8: 25 | M8: 115 | N8: 40 | O8: 25 | P8: 65 | Q8: 200 | R8: 25 | S8: 225
A9: 8 | B9: 200 | C9: 25 | D9: 225 | E9: 130 | F9: 25 | G9: 155 | H9: 90 | I9: 25 | J9: 115 | K9: 85 | L9: 25 | M9: 110 | N9: 40 | O9: 25 | P9: 65 | Q9: 185 | R9: 25 | S9: 210
A10: 9 | B10: 200 | C10: 25 | D10: 225 | E10: 120 | F10: 25 | G10: 145 | H10: 85 | I10: 25 | J10: 110 | K10: 80 | L10: 25 | M10: 105 | N10: 40 | O10: 25 | P10: 65 | Q10: 175 | R10: 25 | S10: 200
A11: 10 | B11: 200 | C11: 25 | D11: 225 | E11: 100 | F11: 25 | G11: 125 | H11: 80 | I11: 25 | J11: 105 | K11: 75 | L11: 25 | M11: 100 | N11: 35 | O11: 25 | P11: 60 | Q11: 165 | R11: 25 | S11: 190
A12: 11 | B12: 175 | D12: 175 | E12: 80 | G12: 80 | H12: 75 | J12: 75 | K12: 70 | M12: 70 | N12: 35 | P12: 35 | Q12: 150 | S12: 150
A13: 12 | B13: 175 | D13: 175 | E13: 70 | G13: 70 | H13: 65 | J13: 65 | K13: 60 | M13: 60 | N13: 35 | P13: 35 | Q13: 140 | S13: 140
A14: 13 | B14: 175 | D14: 175 | E14: 60 | G14: 60 | H14: 55 | J14: 55 | K14: 50 | M14: 50 | N14: 30 | P14: 30 | Q14: 130 | S14: 130
A15: 14 | B15: 175 | D15: 175 | E15: 55 | G15: 55 | H15: 50 | J15: 50 | K15: 45 | M15: 45 | N15: 30 | P15: 30 | Q15: 125 | S15: 125
A16: 15 | B16: 150 | D16: 150 | E16: 50 | G16: 50 | H16: 45 | J16: 45 | K16: 40 | M16: 40 | N16: 30 | P16: 30 | Q16: 120 | S16: 120
A17: 16 | B17: 150 | D17: 150 | E17: 50 | G17: 50 | H17: 40 | J17: 40 | K17: 30 | M17: 30 | N17: 30 | P17: 30 | Q17: 110 | S17: 110
A18: 17 | B18: 150 | D18: 150 | E18: 50 | G18: 50 | H18: 40 | J18: 40 | K18: 30 | M18: 30 | N18: 30 | P18: 30 | Q18: 100 | S18: 100
A19: 18 | B19: 150 | D19: 150 | E19: 50 | G19: 50 | H19: 40 | J19: 40 | K19: 30 | M19: 30 | N19: 30 | P19: 30 | Q19: 100 | S19: 100
A20: 19 | B20: 150 | D20: 150 | E20: 50 | G20: 50 | H20: 40 | J20: 40 | K20: 30 | M20: 30 | N20: 25 | P20: 25 | Q20: 100 | S20: 100
A21: 20 | B21: 150 | D21: 150 | E21: 50 | G21: 50 | H21: 40 | J21: 40 | K21: 30 | M21: 30 | N21: 25 | P21: 25 | Q21: 100 | S21: 100
C22: =SUM(C2:C21) -> 450 | F22: =SUM(F2:F21) -> 1250 | I22: =SUM(I2:I21) -> 650 | L22: =SUM(L2:L21) -> 650 | O22: =SUM(O2:O21) -> 400 | R22: =SUM(R2:R21) -> 600 | T22: =SUM(B22:S22) -> 4000

Sheet Spring Fling Night
B1: Mods | E1: LATE MODELS | H1: Stock Car | K1: Sport Mod | N1: Hobby Stock | Q1: Compacts
A2: 1 | B2: 600 | C2: 400 | D2: =SUM(B2:C2) -> 1000 | E2: 600 | F2: 400 | G2: 1000 | H2: 500 | I2: 500 | J2: =SUM(H2:I2) -> 1000 | K2: 500 | L2: 200 | M2: =SUM(K2:L2) -> 700 | N2: 400 | O2: 200 | P2: =SUM(N2:O2) -> 600 | Q2: 150 | R2: 150 | S2: =SUM(Q2:R2) -> 300
A3: 2 | B3: 400 | C3: 200 | D3: =SUM(B3:C3) -> 600 | E3: 400 | F3: 200 | G3: 600 | H3: 450 | I3: 400 | J3: 600 | K3: 300 | L3: 150 | M3: =SUM(K3:L3) -> 450 | N3: 300 | O3: 150 | P3: =SUM(N3:O3) -> 450 | Q3: 125 | R3: 100 | S3: =SUM(Q3:R3) -> 225
A4: 3 | B4: 400 | C4: 75 | D4: 475 | E4: 400 | F4: 75 | G4: 475 | H4: 400 | I4: 75 | J4: 475 | K4: 150 | L4: 100 | M4: 350 | N4: 250 | O4: 75 | P4: 325 | Q4: 100 | R4: 50 | S4: 150
A5: 4 | B5: 350 | C5: 75 | D5: 375 | E5: 350 | F5: 75 | G5: 375 | H5: 300 | I5: 75 | J5: 375 | K5: 200 | L5: 75 | M5: 275 | N5: 200 | O5: 75 | P5: 275 | Q5: 75 | R5: 50 | S5: 125
A6: 5 | B6: 300 | C6: 75 | D6: 350 | E6: 300 | F6: 75 | G6: 350 | H6: 275 | I6: 75 | J6: 350 | K6: 175 | L6: 50 | M6: 225 | N6: 175 | O6: 50 | P6: 225 | Q6: 60 | R6: 50 | S6: 110
A7: 6 | B7: 250 | C7: 50 | D7: 325 | E7: 200 | F7: 50 | G7: 325 | H7: 250 | I7: 75 | J7: 325 | K7: 150 | L7: 50 | M7: 200 | N7: 150 | O7: 50 | P7: 200 | Q7: 50 | R7: 25 | S7: 75
A8: 7 | B8: 225 | C8: 50 | D8: 275 | E8: 225 | F8: 50 | G8: =SUM(E8:F8) -> 275 | H8: 225 | I8: 50 | J8: =SUM(H8:I8) -> 275 | K8: 125 | L8: 25 | M8: 150 | N8: 125 | O8: 25 | P8: 150 | Q8: 50 | R8: 25 | S8: 75
A9: 8 | B9: 175 | C9: 50 | D9: 225 | E9: 175 | F9: 50 | G9: 225 | H9: 200 | I9: 50 | J9: 225 | K9: 100 | L9: 25 | M9: 125 | N9: 100 | O9: 25 | P9: 125 | Q9: 50 | R9: 25 | S9: 75
A10: 9 | B10: 150 | C10: 50 | D10: 200 | E10: 150 | F10: 50 | G10: 200 | H10: 175 | I10: 50 | J10: 200 | K10: 90 | M10: 90 | N10: 90 | O10: 25 | P10: 115 | Q10: 50 | R10: 25 | S10: 75
A11: 10 | B11: 125 | C11: 50 | D11: 175 | E11: 125 | F11: 50 | G11: 175 | H11: 150 | I11: 50 | J11: 175 | K11: 70 | M11: 70 | N11: 70 | O11: 25 | P11: 95 | Q11: 50 | S11: 50
A12: 11 | B12: 125 | D12: 125 | E12: 125 | G12: 125 | H12: 150 | J12: 125 | K12: 50 | M12: 50 | N12: 50 | P12: 50 | Q12: 50 | S12: 50
A13: 12 | B13: 125 | D13: 125 | E13: 125 | G13: 125 | H13: 125 | J13: 125 | K13: 50 | M13: 50 | N13: 50 | P13: 50 | Q13: 50 | S13: 50
A14: 13 | B14: 125 | D14: 125 | E14: 125 | G14: 125 | H14: 125 | J14: 125 | K14: 50 | M14: 50 | N14: 50 | P14: 50 | Q14: 40 | S14: 40
A15: 14 | B15: 125 | D15: 125 | E15: 125 | G15: 125 | H15: 125 | J15: 125 | K15: 50 | M15: 50 | N15: 50 | P15: 50 | Q15: 40 | S15: 40
A16: 15 | B16: 100 | D16: 100 | E16: 100 | G16: 100 | H16: 100 | J16: 100 | K16: 50 | M16: 50 | N16: 50 | P16: 50 | Q16: 40 | S16: 40
A17: 16 | B17: 100 | D17: 100 | E17: 100 | G17: 100 | H17: 100 | J17: 100 | K17: 50 | M17: 50 | N17: 50 | P17: 50 | Q17: 40 | S17: 40
A18: 17 | B18: 100 | D18: 100 | E18: 100 | G18: 100 | H18: 100 | J18: 100 | K18: 50 | M18: 50 | N18: 50 | P18: 50 | Q18: 40 | S18: 40
A19: 18 | B19: 100 | D19: 100 | E19: 100 | G19: 100 | H19: 75 | J19: 100 | K19: 50 | M19: 50 | N19: 50 | P19: 50 | Q19: 40 | S19: 40
A20: 19 | B20: 100 | D20: 100 | E20: 100 | G20: 100 | H20: 75 | J20: 100 | K20: 50 | M20: 50 | N20: 50 | P20: 50 | Q20: 40 | S20: 40
A21: 20 | B21: 100 | D21: 100 | E21: 100 | G21: 100 | H21: 75 | J21: 100 | K21: 50 | M21: 50 | N21: 50 | P21: 50 | Q21: 40 | S21: 40
C22: =SUM(C2:C21) -> 1075 | F22: =SUM(F2:F21) -> 1075 | I22: =SUM(I2:I21) -> 1400 | L22: =SUM(L2:L21) -> 675 | O22: =SUM(O2:O21) -> 700 | R22: =SUM(R2:R21) -> 500
A23: tow | D23: 50 | G23: 50 | J23: 50 | M23: 30 | P23: 30 | S23: 20
